bitfinex-derivatives/quotes_SOLF0:USTF0_20260218
["timestamp","ask_amount","ask_price","bid_price","bid_amount"]
[1771457990991,3.86064958,81.47,81.431,19.89399891]
[1771457993490,3.86064958,81.47,81.433,19.89161359]
[1771457993687,9.06076215,81.475,81.433,19.89161359]
[1771457993892,11.0511,81.476,81.433,19.89161359]
[1771457994091,3.86064958,81.47,81.433,19.89161359]
[1771457996382,9.07165901,81.475,81.435,19.88863225]
[1771457996579,11.0511,81.476,81.435,19.88863225]
[1771457998684,3.86064958,81.46,81.424,19.88864858]
[1771457998894,189.96267424,81.493,81.424,19.88864858]
[1771457998895,3.86064958,81.45,81.424,19.88864858]
[1771457999192,3.86064958,81.45,81.39,3.86064958]
[1771457999395,3.86064958,81.45,81.401,11.0612]
[1771457999694,11.0537,81.458,81.386,22.92127119]
[1771457999894,11.0537,81.458,81.4,3.86064958]
[1771458000198,11.0537,81.458,81.41,11.06]
[1771458000395,11.0537,81.458,81.41,14.92064958]
[1771458000689,11.0522,81.469,81.42,3.86064958]
[1771458001086,11.0522,81.469,81.421,10.16843718]
[1771458002795,3.86064958,81.46,81.421,10.16843718]
[1771458002991,3.86064958,81.47,81.427,10.27706135]
[1771458003596,77.34,81.477,81.427,10.27706135]
[1771458003794,86.4088025,81.477,81.427,10.27706135]
[1771458004700,86.4088025,81.477,81.43,10.26917196]
[1771458005297,3.86064958,81.47,81.43,10.26917196]
[1771458007701,77.34,81.477,81.439,10.28611395]
[1771458008995,11.0495,81.488,81.44,11.056]
[1771458009197,3.86064958,81.48,81.441,10.28611395]
[1771458010097,3.8589764,81.48,81.441,10.28611395]
[1771458018709,3.8589764,81.48,81.442,11.0557]
[1771458018910,3.8589764,81.48,81.443,10.27293452]
[1771458019811,9.06704944,81.482,81.447,10.27050965]
[1771458020008,9.06704944,81.487,81.447,10.27050965]
[1771458020209,3.8589764,81.48,81.447,10.27050965]
[1771458021304,9.06704944,81.479,81.447,10.27050965]
[1771458021502,3.8589764,81.48,81.447,10.27050965]
[1771458021802,9.06913287,81.479,81.447,10.27050965]
[1771458022300,3.8589764,81.48,81.447,10.27050965]
[1771458022503,9.07087327,81.479,81.447,10.27050965]
[1771458022709,3.8589764,81.48,81.447,10.27050965]
[1771458022908,9.07087327,81.479,81.447,10.27050965]
[1771458023109,3.8589764,81.48,81.447,10.27050965]
[1771458023313,9.07087327,81.479,81.447,10.27050965]
[1771458023507,3.8589764,81.48,81.447,10.27050965]
[1771458023712,9.0712303,81.479,81.447,10.27050965]
[1771458023914,9.0712303,81.478,81.447,10.27050965]
[1771458024216,3.8589764,81.48,81.447,10.27050965]
[1771458024413,9.07168321,81.479,81.447,10.27050965]
[1771458024709,9.07168321,81.478,81.447,10.27050965]
[1771458024911,3.8589764,81.48,81.447,10.27050965]
[1771458025111,9.07168321,81.479,81.447,10.27050965]
[1771458025309,9.07168321,81.478,81.447,10.27050965]
[1771458025505,9.07168321,81.477,81.447,10.27050965]
[1771458025809,9.07168321,81.476,81.447,10.27050965]
[1771458026013,3.8589764,81.48,81.447,10.27050965]
[1771458026217,9.19049696,81.479,81.447,10.27050965]
[1771458026515,9.19049696,81.478,81.447,10.27050965]
[1771458026714,9.19049696,81.477,81.447,10.27050965]
[1771458026917,9.19049696,81.476,81.447,10.27050965]
[1771458027214,3.8589764,81.48,81.447,10.27050965]
[1771458027416,9.19205593,81.479,81.447,10.27050965]
[1771458027609,9.19205593,81.478,81.447,10.27050965]
[1771458027810,9.19205593,81.477,81.447,10.27050965]
[1771458028009,9.19205593,81.476,81.447,10.27050965]
[1771458028205,9.19205593,81.475,81.447,10.27050965]
[1771458028407,3.8589764,81.48,81.447,10.27050965]
[1771458028610,9.19223329,81.479,81.447,10.27050965]
[1771458028813,9.19223329,81.478,81.447,10.27050965]
[1771458029105,9.19223329,81.477,81.447,10.27050965]
[1771458029306,9.19223329,81.476,81.447,10.27050965]
[1771458029511,9.19223329,81.475,81.447,10.27050965]
[1771458029814,3.8589764,81.48,81.447,10.27050965]
[1771458030016,9.19237532,81.479,81.447,10.27050965]
[1771458030216,9.19237532,81.478,81.447,10.27050965]
[1771458030516,9.19237532,81.477,81.447,10.27050965]
[1771458030718,9.19237532,81.476,81.447,10.27050965]
[1771458031017,9.19237532,81.475,81.447,10.27050965]
[1771458031218,3.8589764,81.48,81.447,10.27050965]
[1771458031417,9.19259409,81.479,81.447,10.27050965]
[1771458031619,9.19259409,81.478,81.447,10.27050965]
[1771458031820,9.19259409,81.477,81.447,10.27050965]
[1771458032116,9.19259409,81.476,81.447,10.27050965]
[1771458032317,9.19259409,81.475,81.447,10.27050965]
[1771458032520,3.8589764,81.48,81.447,10.27050965]
[1771458032718,9.19253997,81.479,81.447,10.27050965]
[1771458032918,9.19253997,81.478,81.447,10.27050965]
[1771458033115,9.19253997,81.477,81.447,10.27050965]
[1771458033315,9.19253997,81.476,81.447,10.27050965]
[1771458033520,9.19253997,81.475,81.447,10.27050965]
[1771458033720,3.8589764,81.48,81.447,10.27050965]
[1771458033916,9.19249171,81.479,81.447,10.27050965]
[1771458034219,9.19249171,81.478,81.447,10.27050965]
[1771458034411,9.19249171,81.477,81.447,10.27050965]
[1771458034612,9.19249171,81.476,81.447,10.27050965]
[1771458034810,9.19249171,81.475,81.447,10.27050965]
[1771458035111,3.8589764,81.48,81.447,10.27050965]
[1771458035312,9.19244718,81.479,81.447,10.27050965]
[1771458035522,9.19244718,81.478,81.447,10.27050965]
[1771458035721,9.19244718,81.477,81.447,10.27050965]
[1771458035921,9.19244718,81.476,81.447,10.27050965]
[1771458036223,9.19244718,81.475,81.447,10.27050965]
[1771458036522,3.8589764,81.48,81.447,10.27050965]
[1771458036722,9.19242512,81.479,81.447,10.27050965]
[1771458036923,9.19242512,81.478,81.447,10.27050965]
[1771458037123,9.19242512,81.477,81.447,10.27050965]
[1771458037321,9.19242512,81.476,81.447,10.27050965]
[1771458037522,9.19242512,81.475,81.447,10.27050965]
[1771458037723,3.8589764,81.48,81.447,10.27050965]
[1771458037924,9.19244027,81.479,81.447,10.27050965]
[1771458038123,9.19244027,81.478,81.447,10.27050965]
[1771458038424,9.19244027,81.477,81.447,10.27050965]
[1771458038622,9.19244027,81.476,81.447,10.27050965]
[1771458038821,9.19244027,81.475,81.447,10.27050965]
[1771458039027,3.8589764,81.48,81.447,10.27050965]
[1771458039230,9.19246367,81.479,81.447,10.27050965]
[1771458039429,9.19246367,81.478,81.447,10.27050965]
[1771458039631,9.19246367,81.477,81.447,10.27050965]
[1771458039830,9.19246367,81.476,81.447,10.27050965]
[1771458040033,9.19246367,81.475,81.447,10.27050965]
[1771458040233,3.8589764,81.48,81.447,10.27050965]
[1771458040532,9.192466,81.479,81.447,10.27050965]
[1771458040833,9.192466,81.478,81.447,10.27050965]
[1771458041025,9.192466,81.477,81.447,10.27050965]
[1771458041226,9.192466,81.476,81.447,10.27050965]
[1771458041427,9.192466,81.475,81.447,10.27050965]
[1771458041626,3.8589764,81.48,81.447,10.27050965]
[1771458041827,9.19247543,81.479,81.447,10.27050965]
[1771458042033,9.19247543,81.478,81.447,10.27050965]
[1771458042233,3.8589764,81.48,81.447,10.27050965]
[1771458042234,9.19247543,81.477,81.447,10.27050965]
[1771458042436,9.19247543,81.476,81.447,10.27050965]
[1771458042638,9.19247543,81.475,81.447,10.27050965]
[1771458042839,3.8589764,81.48,81.447,10.27050965]
[1771458043139,9.19246952,81.479,81.447,10.27050965]
[1771458043339,9.19246952,81.478,81.447,10.27050965]
[1771458043540,9.19246952,81.477,81.447,10.27050965]
[1771458043739,9.19246952,81.476,81.447,10.27050965]
[1771458044040,9.19246952,81.475,81.447,10.27050965]
[1771458044239,3.8589764,81.48,81.447,10.27050965]
[1771458044435,9.19973376,81.479,81.447,10.27050965]
[1771458044631,9.17973376,81.478,81.447,10.27050965]
[1771458044830,3.8589764,81.48,81.447,10.27050965]
[1771458046941,3.8589764,81.47,81.447,10.27050965]
[1771458047338,3.8589764,81.46,81.426,10.26785016]
[1771458048945,3.8589764,81.46,81.427,11.0577]
[1771458049141,3.8589764,81.46,81.428,10.26785016]
[1771458050745,3.8589764,81.46,81.431,10.23630405]
[1771458057458,3.8589764,81.46,81.432,11.0571]
[1771458057959,3.8589764,81.46,81.433,10.25849389]
[1771458061254,3.8589764,81.46,81.41,3.8589764]
[1771458061255,3.8589764,81.45,81.424,10.25667547]
[1771458067454,77.38,81.462,81.427,10.25131924]
[1771458068364,11.0526,81.465,81.427,10.25131924]
[1771458069463,3.8589764,81.46,81.427,10.25131924]
[1771458071957,3.86036227,81.46,81.427,10.25131924]
[1771458108380,3.86036227,81.45,81.412,10.15837114]
[1771458111692,3.86036227,81.44,81.412,10.15837114]
[1771458113499,3.86036227,81.45,81.412,10.15837114]
[1771458116101,12.91288077,81.46,81.414,10.17786769]
[1771458116396,3.86036227,81.45,81.414,10.17786769]
[1771458118197,9.05179704,81.459,81.419,10.17015127]
[1771458118397,3.86036227,81.46,81.419,10.17015127]
[1771458119900,3.86036227,81.46,81.423,10.15681493]
[1771458120501,9.05045515,81.459,81.423,10.15681493]
[1771458120695,3.86036227,81.46,81.423,10.15681493]
[1771458120893,9.05045515,81.459,81.423,10.15681493]
[1771458121092,3.86036227,81.46,81.423,10.15681493]
[1771458121294,9.05042205,81.459,81.423,10.15681493]
[1771458121489,3.86036227,81.46,81.423,10.15681493]
[1771458123715,9.05007804,81.467,81.425,10.17530271]
[1771458123914,9.05007804,81.466,81.425,10.17530271]
[1771458124112,3.86036227,81.46,81.425,10.17530271]
[1771458127215,3.86036227,81.48,81.435,8.28707147]
[1771458127409,9.04988522,81.479,81.435,8.28707147]
[1771458127716,9.04988522,81.478,81.435,8.28707147]
[1771458127911,3.86036227,81.48,81.435,8.28707147]
[1771458128221,9.04848728,81.479,81.435,8.28707147]
[1771458128406,3.86036227,81.48,81.438,8.29047846]
[1771458129719,3.86036227,81.47,81.438,8.29047846]
[1771458133615,3.86036227,81.47,81.439,8.26989237]
[1771458133912,3.85910331,81.48,81.439,8.26989237]
[1771458135918,3.85910331,81.48,81.441,8.23158887]
[1771458136114,11.0498,81.486,81.441,8.23158887]
[1771458137819,3.85910331,81.48,81.441,8.23158887]
[1771458138721,3.85910331,81.47,81.441,8.23158887]
[1771458139222,3.85910331,81.47,81.432,19.29099869]
[1771458139422,3.85910331,81.47,81.433,8.2309146]
[1771458140621,3.85910331,81.47,81.42,3.85910331]
[1771458140622,3.85910331,81.47,81.436,19.2874146]
[1771458140823,3.85910331,81.47,81.437,8.2309146]
[1771458144622,3.85910331,81.47,81.428,8.24689936]
[1771458144826,11.0521,81.469,81.428,8.24689936]
[1771458146517,9.0099933,81.483,81.428,8.24689936]
[1771458146826,3.85910331,81.48,81.428,8.24689936]
[1771458147420,11.0514,81.474,81.433,8.22317573]
[1771458150029,11.0505,81.481,81.436,8.24928472]
[1771458151730,11.0505,81.481,81.443,8.24177239]
[1771458155134,11.0495,81.488,81.443,8.24177239]
[1771458163436,20.03719105,81.488,81.443,8.24177239]
[1771458163635,11.0495,81.488,81.443,8.24177239]
[1771458163841,20.03719105,81.488,81.443,8.24177239]
[1771458164033,11.0495,81.488,81.443,8.24177239]
[1771458164235,11.05,81.485,81.443,8.24177239]
[1771458164438,3.85910331,81.48,81.443,8.24177239]
[1771458165536,11.0507,81.479,81.443,8.24177239]
[1771458167236,3.85910331,81.47,81.429,8.29342083]
[1771458168038,3.85910331,81.48,81.439,8.29342083]
[1771458169836,3.85910331,81.47,81.426,8.28964403]
[1771458170036,3.85910331,81.48,81.43,3.85910331]
[1771458170237,9.00608107,81.485,81.431,8.28964403]
[1771458170438,9.00608107,81.485,81.43,3.85910331]
[1771458170439,9.00608107,81.484,81.442,8.28964403]
[1771458170639,9.00608107,81.483,81.442,8.28964403]
[1771458170841,9.00608107,81.482,81.442,8.28964403]
[1771458171042,11.0499,81.485,81.442,8.28964403]
[1771458171339,9.00895864,81.484,81.442,8.28964403]
[1771458171538,9.00895864,81.483,81.442,8.28964403]
[1771458171741,9.00895864,81.482,81.442,8.28964403]
[1771458171942,11.0499,81.485,81.442,8.28964403]
[1771458172142,9.00895864,81.484,81.442,8.28964403]
[1771458172343,9.00895864,81.483,81.442,8.28964403]
[1771458172543,9.00895864,81.482,81.442,8.28964403]
[1771458172747,9.00895864,81.481,81.442,8.28964403]
[1771458172946,11.0499,81.485,81.442,8.28964403]
[1771458173143,9.01146907,81.484,81.442,8.28964403]
[1771458173344,9.01146907,81.483,81.442,8.28964403]
[1771458173545,9.01146907,81.482,81.442,8.28964403]
[1771458173748,11.46301779,81.508,81.451,8.34842252]
[1771458174042,9.01038203,81.507,81.461,8.34842252]
[1771458174244,9.01038203,81.506,81.461,8.34842252]
[1771458174443,9.01038203,81.505,81.461,8.34842252]
[1771458174640,9.01038203,81.504,81.461,8.34842252]
[1771458174950,9.01038203,81.503,81.461,8.34842252]
[1771458175243,9.01038203,81.502,81.461,8.34842252]
[1771458175545,9.01038203,81.501,81.461,8.34842252]
[1771458175744,11.0471,81.506,81.461,8.34842252]
[1771458176042,8.9930422,81.505,81.461,8.34842252]
[1771458176242,8.9930422,81.504,81.461,8.34842252]
[1771458176440,8.9930422,81.503,81.461,8.34842252]
[1771458176636,8.9930422,81.502,81.462,11.0529]
[1771458176841,11.0471,81.506,81.462,11.0529]
[1771458176842,8.9930422,81.505,81.463,8.34870508]
[1771458177037,8.9930422,81.504,81.463,8.34870508]
[1771458177236,8.9930422,81.503,81.463,8.34870508]
[1771458177439,8.9930422,81.505,81.463,8.34870508]
[1771458177643,8.9930422,81.504,81.463,8.34870508]
[1771458177845,8.9930422,81.503,81.463,8.34870508]
[1771458178036,8.9930422,81.505,81.463,8.34870508]
[1771458179240,11.0471,81.506,81.463,8.34870508]
[1771458179943,20.0401422,81.506,81.463,8.34870508]
[1771458180138,11.0471,81.506,81.463,8.34870508]
[1771458180352,3.85910331,81.5,81.463,8.34870508]
[1771458180750,3.85910331,81.49,81.463,8.34870508]
[1771458181046,3.85910331,81.5,81.463,8.34870508]
[1771458181252,81.44,81.515,81.463,8.34870508]
[1771458181448,8.9930422,81.521,81.463,8.34870508]
[1771458181449,35.0,81.557,81.47,3.85910331]
[1771458181653,3.85910331,81.52,81.471,8.35258964]
[1771458181849,3.85910331,81.52,81.481,8.35258964]
[1771458182049,12.84032864,81.53,81.481,8.35258964]
[1771458182254,3.85910331,81.53,81.481,8.35258964]
[1771458182650,3.85910331,81.53,81.482,11.0502]
[1771458182857,11.0441,81.528,81.483,8.35258964]
[1771458185149,3.85910331,81.53,81.483,8.35258964]
[1771458186455,11.044,81.529,81.485,11.0499]
[1771458186650,11.044,81.529,81.486,8.34890137]
[1771458191365,3.85910331,81.54,81.497,8.44934079]
[1771458192164,11.044,81.529,81.484,8.44934079]
[1771458193760,11.044,81.529,81.487,8.45111075]
[1771458205068,11.0448,81.523,81.487,8.45111075]
[1771458215277,3.85428599,81.5,81.461,8.43388076]
[1771458215881,3.85428599,81.49,81.458,8.4338713]
[1771458217987,11.0481,81.499,81.458,8.4338713]
[1771458220292,11.047,81.507,81.461,8.41950863]
[1771458220491,3.85428599,81.5,81.461,8.41950863]
[1771458228888,3.85428599,81.51,81.467,8.36993225]
[1771458229892,88.326,81.515,81.47,3.85428599]
[1771458230097,88.326,81.515,81.471,8.37215277]
[1771458231095,11.046,81.515,81.471,8.37215277]
[1771458232904,3.85428599,81.52,81.478,8.36783351]
[1771458233102,11.0449,81.523,81.478,8.36783351]
[1771458233297,3.85428599,81.53,81.481,8.37358522]
[1771458234704,3.85428599,81.53,81.488,8.37358522]
[1771458237504,3.85428599,81.51,81.49,8.38958132]
[1771458237699,3.85428599,81.51,81.461,8.38958132]
[1771458237904,3.85428599,81.51,81.476,8.38958132]
[1771458243813,14.90088599,81.51,81.468,11.0521]
[1771458244013,14.90088599,81.51,81.469,8.38478306]
[1771458244409,11.0474,81.504,81.469,8.38478306]
[1771458244610,3.85428599,81.51,81.469,8.38478306]
[1771458248718,11.0469,81.507,81.469,8.38478306]
[1771458250313,3.85428599,81.5,81.469,8.38478306]
[1771458253020,11.0481,81.499,81.469,8.38478306]
[1771458253219,3.85428599,81.49,81.469,8.38478306]
[1771458253410,3.85428599,81.5,81.469,8.38478306]
[1771458254817,11.0481,81.499,81.469,8.38478306]
[1771458255614,11.0481,81.499,81.453,8.39088481]
[1771458255818,3.85428599,81.49,81.456,8.39088481]
[1771458256018,11.0481,81.499,81.456,8.39088481]
[1771458256214,3.85428599,81.49,81.456,8.39088481]
[1771458258025,3.85802437,81.49,81.456,8.39088481]
[1771458259821,3.85802437,81.48,81.439,8.41066841]
[1771458260021,3.85802437,81.47,81.439,8.41066841]
[1771458265737,3.85802437,81.47,81.441,8.36969586]
[1771458266026,3.85802437,81.46,81.431,40.80019599]
[1771458266231,3.85802437,81.46,81.431,8.36969586]
[1771458268033,3.85802437,81.46,81.421,8.37168276]
[1771458268336,3.85802437,81.45,81.421,8.37168276]
[1771458270937,3.85802437,81.47,81.421,8.37168276]
[1771458271241,77.32,81.479,81.431,8.37466946]
[1771458271637,3.85802437,81.48,81.431,8.37466946]
[1771458272838,3.85802437,81.48,81.439,8.36940355]
[1771458273634,3.85802437,81.48,81.441,8.35135566]
[1771458277637,3.85802437,81.49,81.45,8.38150958]
[1771458278641,3.85802437,81.49,81.451,11.0544]
[1771458278943,3.85802437,81.49,81.452,8.38150958]
[1771458283345,11.0481,81.499,81.454,8.38244729]
[1771458283546,11.0469,81.508,81.454,8.38244729]
[1771458284640,11.0469,81.508,81.463,8.38599136]
[1771458286046,11.0469,81.508,81.465,8.37512294]
[1771458286840,11.0477,81.502,81.465,8.37512294]
[1771458287346,3.85802437,81.5,81.465,8.37512294]
[1771458297356,11.048,81.499,81.465,8.37512294]
[1771458297756,3.85802437,81.5,81.465,8.37512294]
[1771458299857,11.0471,81.506,81.467,8.47710533]
[1771458300053,3.85802437,81.5,81.467,8.47710533]
[1771458301060,3.85802437,81.49,81.467,8.47710533]
[1771458301258,3.85802437,81.49,81.452,8.47710533]
[1771458302250,3.85802437,81.49,81.454,8.48495422]
[1771458302448,3.85802437,81.5,81.454,8.48495422]
[1771458303351,11.0482,81.498,81.456,8.48495422]
[1771458303959,3.85802437,81.49,81.456,8.48495422]
[1771458304161,3.85802437,81.49,81.448,11.0549]
[1771458304962,3.85802437,81.49,81.449,8.48638942]
[1771458306156,11.0482,81.498,81.451,8.46455406]
[1771458306361,3.85802437,81.49,81.451,8.46455406]
[1771458313672,3.85802437,81.5,81.454,8.44711395]
[1771458313965,3.85802437,81.51,81.454,8.44711395]
[1771458314972,3.85802437,81.5,81.455,8.44711395]
[1771458315978,3.85802437,81.49,81.458,8.43485792]
[1771458319969,3.85754492,81.49,81.458,8.43485792]
[1771458322382,11.0483,81.497,81.458,8.43485792]
[1771458324077,3.85754492,81.5,81.462,8.45332521]
[1771458325672,3.85754492,81.5,81.45,3.85754492]
[1771458325673,3.85754492,81.5,81.464,8.45244796]
[1771458326072,77.58,81.516,81.441,8.45244796]
[1771458326073,3.85754492,81.49,81.441,8.45244796]
[1771458327777,3.85754492,81.49,81.448,8.47538984]
[1771458328176,3.85754492,81.5,81.451,8.47538984]
[1771458328481,8.96526063,81.499,81.451,8.47538984]
[1771458328782,11.0485,81.496,81.452,8.47538984]
[1771458329181,20.01376063,81.496,81.452,8.47538984]
[1771458329381,11.0485,81.496,81.452,8.47538984]
[1771458329675,3.85754492,81.49,81.452,8.47538984]
[1771458330982,3.85754492,81.49,81.454,8.50374602]
[1771458331178,3.85754492,81.5,81.454,8.50374602]
[1771458331681,11.0473,81.504,81.454,8.50374602]
[1771458332781,3.85754492,81.51,81.464,8.49924895]
[1771458333081,8.96261231,81.514,81.464,8.49924895]
[1771458333292,3.85754492,81.51,81.464,8.49924895]
[1771458333687,3.85754492,81.51,81.471,8.49035626]
[1771458334678,3.85754492,81.51,81.473,8.49035626]
[1771458335587,3.85754492,81.51,81.475,8.49505501]
[1771458335787,8.96261231,81.527,81.475,8.49505501]
[1771458335985,8.96261231,81.526,81.475,8.49505501]
[1771458336292,8.96261231,81.525,81.475,8.49505501]
[1771458336488,8.96261231,81.524,81.475,8.49505501]
[1771458336790,8.96261231,81.527,81.481,8.49505501]
[1771458336985,8.96261231,81.526,81.481,8.49505501]
[1771458337180,8.96261231,81.525,81.481,8.49505501]
[1771458337387,11.0442,81.528,81.481,8.49505501]
[1771458337388,8.96261231,81.527,81.481,8.49505501]
[1771458337581,8.96261231,81.526,81.481,8.49505501]
[1771458337785,3.85754492,81.52,81.481,8.49505501]
[1771458339198,3.85754492,81.52,81.452,22.92127119]
[1771458339199,3.85754492,81.5,81.471,8.48923547]
[1771458339492,3.85754492,81.49,81.444,8.55229388]
[1771458340592,3.85754492,81.5,81.444,8.55229388]
[1771458340890,3.85754492,81.49,81.458,8.55229388]
[1771458341693,3.85754492,81.49,81.46,8.56025292]
[1771458342598,8.96261231,81.518,81.469,8.56025292]
[1771458342599,3.85754492,81.5,81.469,8.56025292]
[1771458342787,3.85754492,81.51,81.469,8.56025292]
[1771458343094,77.32,81.519,81.482,8.56025292]
[1771458351100,77.32,81.519,81.485,8.5478248]
[1771458351294,183.68480109,81.545,81.485,8.5478248]
[1771458351495,3.85754492,81.53,81.485,8.5478248]
[1771458352696,3.85754492,81.53,81.488,11.0494]
[1771458352892,3.85754492,81.53,81.489,8.54644081]
[1771458353293,261.00480109,81.545,81.473,8.54644081]
[1771458353294,11.0453,81.519,81.473,8.54644081]
[1771458353495,3.85754492,81.51,81.473,8.54644081]
[1771458355098,3.85754492,81.52,81.473,8.54644081]
[1771458356706,14.90274492,81.52,81.475,8.54356303]
[1771458357510,14.90274492,81.52,81.477,8.53419851]
[1771458358909,14.90274492,81.52,81.48,8.53437458]
[1771458359106,3.85754492,81.51,81.48,8.53437458]
[1771458359903,3.85754492,81.51,81.469,8.51669022]
[1771458360103,3.85754492,81.5,81.471,11.0517]
[1771458360610,3.85754492,81.5,81.436,77.3]
[1771458360611,3.85754492,81.49,81.461,8.51669022]
[1771458360911,3.85754492,81.5,81.461,8.51669022]
[1771458361610,3.85754492,81.5,81.464,8.52088079]
[1771458362912,3.85754492,81.5,81.466,8.52088079]
[1771458366317,11.0473,81.505,81.466,8.52088079]
[1771458366912,3.85754492,81.5,81.466,8.52088079]
[1771458370020,3.85754492,81.48,81.455,8.50121704]
[1771458374521,36.85,81.526,81.455,8.50121704]
[1771458374522,3.85754492,81.49,81.455,8.50121704]
[1771458375413,3.85754492,81.48,81.455,8.50121704]
[1771458378324,3.85754492,81.48,81.446,11.0552]
[1771458378719,3.85754492,81.48,81.449,11.0547]
[1771458378925,3.85754492,81.48,81.45,8.59133889]
[1771458379919,3.85851185,81.48,81.45,8.59133889]
[1771458380729,3.85851185,81.48,81.451,19.6496164]
[1771458381025,3.85851185,81.48,81.452,8.5951164]
[1771458382817,3.85851185,81.48,81.455,11.0539]
[1771458385329,88.3685,81.496,81.458,8.59090965]
[1771458385527,3.85851185,81.49,81.458,8.59090965]
[1771458386431,3.85851185,81.48,81.458,8.59090965]
[1771458388333,3.85851185,81.48,81.451,8.59498624]
[1771458390224,3.85851185,81.48,81.439,8.60035052]
[1771458390434,3.85851185,81.47,81.439,8.60035052]
[1771458390635,3.85851185,81.48,81.439,8.60035052]
[1771458391334,3.85851185,81.47,81.441,8.60035052]
[1771458392332,3.85851185,81.49,81.447,6.60375949]
[1771458392532,77.32,81.491,81.424,6.60375949]
[1771458392730,3.85851185,81.47,81.424,6.60375949]
[1771458393739,3.85851185,81.47,81.437,6.55246658]
[1771458393937,3.85851185,81.49,81.437,6.55246658]
[1771458394631,3.85851185,81.49,81.444,11.0553]
[1771458394938,3.85851185,81.48,81.445,6.55246658]
[1771458395340,3.85851185,81.47,81.445,6.55246658]
[1771458396034,3.85851185,81.48,81.445,6.55246658]
[1771458399344,78.78,81.491,81.459,4.58931389]
[1771458399641,3.85851185,81.49,81.459,4.58931389]
[1771458410649,8.95079699,81.503,81.461,4.58132682]
[1771458410845,3.85851185,81.5,81.461,4.58132682]
[1771458411846,3.85851185,81.5,81.463,4.57843148]
[1771458417945,3.85851185,81.49,81.454,4.57694882]
[1771458418147,3.85851185,81.48,81.433,4.57694882]
[1771458419653,3.85851185,81.48,81.439,11.0561]
[1771458419857,3.85851185,81.48,81.44,4.59392065]
[1771458420454,11.0498,81.486,81.44,4.59392065]
[1771458420649,11.0507,81.479,81.44,4.59392065]
[1771458422251,3.85851185,81.49,81.442,4.59583573]
[1771458422458,25.11305462,81.539,81.442,4.59583573]
[1771458422459,79.78,81.493,81.442,4.59583573]
[1771458423661,79.78,81.493,81.451,11.0545]
[1771458423863,79.78,81.493,81.452,4.58836196]
[1771458424465,79.78,81.493,81.454,4.58836196]
[1771458425660,11.049,81.492,81.454,4.58836196]
[1771458426553,3.85851185,81.49,81.454,4.58836196]
[1771458439866,3.85773805,81.49,81.454,4.58836196]
[1771458444073,11.049,81.492,81.454,4.58836196]
[1771458444671,3.85773805,81.49,81.454,4.58836196]
[1771458447980,14.90573805,81.5,81.454,4.58836196]
[1771458448177,8.99162193,81.499,81.454,4.58836196]
[1771458448476,3.85773805,81.5,81.454,4.58836196]
[1771458448672,3.85773805,81.52,81.461,4.57410017]
[1771458448877,8.98951619,81.527,81.471,4.57410017]
[1771458449077,8.98951619,81.526,81.481,4.57410017]
[1771458449380,80.82,81.528,81.481,4.57410017]
[1771458450177,20.02747633,81.527,81.483,4.56744938]
[1771458450474,3.85773805,81.52,81.483,4.56744938]
[1771458451676,14.90303805,81.52,81.483,4.56744938]
[1771458455487,3.85773805,81.52,81.483,4.56744938]
[1771458456187,11.0433,81.534,81.491,4.4463161]
[1771458456885,3.85773805,81.54,81.5,4.4463161]
[1771458457085,3.85773805,81.58,81.531,4.4463161]
[1771458457289,36.85,81.61,81.531,4.4463161]
[1771458457290,3.85773805,81.59,81.531,4.4463161]
[1771458457488,11.0363,81.586,81.541,4.44469277]
[1771458458288,3.85773805,81.59,81.541,4.44469277]
[1771458460190,3.85773805,81.59,81.543,4.5522454]
[1771458461191,3.85773805,81.58,81.543,4.5522454]
[1771458462788,3.85773805,81.58,81.52,3.85773805]
[1771458462789,3.85773805,81.57,81.532,4.55028943]
[1771458465197,3.85773805,81.57,81.519,4.71058786]
[1771458465386,3.85773805,81.57,81.522,4.71058786]
[1771458465696,3.85773805,81.57,81.521,11.0449]
[1771458465697,3.85773805,81.55,81.509,4.71057541]
[1771458466493,3.85773805,81.55,81.511,4.71057541]
[1771458467002,3.85773805,81.57,81.521,4.71057541]
[1771458468395,3.85773805,81.56,81.521,4.71057541]
[1771458468598,3.85773805,81.55,81.509,4.71465242]
[1771458472300,36.85,81.572,81.493,4.72875017]
[1771458472501,3.85773805,81.55,81.493,4.72875017]
[1771458472901,3.85773805,81.55,81.508,11.0468]
[1771458473498,3.85773805,81.58,81.521,4.72121251]
[1771458474003,3.85773805,81.57,81.521,4.72121251]
[1771458474206,3.85773805,81.57,81.533,15.76451251]
[1771458474501,3.85773805,81.57,81.534,4.72121251]
[1771458474698,3.85773805,81.56,81.534,4.72121251]
[1771458474897,3.85773805,81.56,81.525,11.0444]
[1771458475100,3.85773805,81.56,81.522,4.72121251]
[1771458480000,36.85,81.568,81.507,4.6618523]
[1771458480201,3.85773805,81.54,81.507,4.6618523]
[1771458481112,3.85773805,81.55,81.514,11.0458]
[1771458482108,3.85773805,81.55,81.507,15.7087523]
[1771458483013,3.85773805,81.55,81.513,11.0461]